Cogmind - Beta 12 @@@ ROGUE MODE // 2023.05.14 @ 11:30:20 Player: TheGreatBorealis Result: Destroyed by G-47 Trooper with Particle Gun Performance ------------- Evolutions (0) 0 Regions Visited (2) 400 Robots Destroyed (23) 115 Value Destroyed (515) 515 Prototype IDs (2) 40 Alien Tech Used (0) 0 Bonus (0) 0 TOTAL SCORE: 1070 Bonus ------- None Cogmind --------- Core Integrity 0/250 Matter 280/300 Energy 125/125 System Corruption 2% Temperature Warm (185) Movement Walking (120) Location -10/Mines Parts ------- > --- POWER (1) -------- Light Ion Engine > --- PROPULSION (2) --- Aluminum Leg Aluminum Leg > --- UTILITY (2) ------ Medium Storage Unit Power Shielding > --- WEAPON (2) ------- Small Laser Light Assault Rifle > --- INVENTORY (10) --- Ion Engine Aluminum Leg Aluminum Leg Aluminum Leg Aluminum Leg Medium Storage Unit Small Laser Light Assault Rifle Rocket Launcher Hammer Peak State ------------ > --- POWER ------------ Light Nuclear Core > --- PROPULSION ------- Aluminum Leg Aluminum Leg > --- UTILITY ---------- Heat Sink Medium Storage Unit > --- WEAPON ----------- Small Laser Light Assault Rifle > --- INVENTORY -------- Ion Engine Aluminum Leg Aluminum Leg Aluminum Leg Aluminum Leg Medium Storage Unit Small Laser Light Assault Rifle Rocket Launcher Hammer [Rating: 10] Favorites ----------- Power Light Ion Engine Engine Light Ion Engine Power Core Light Nuclear Core Propulsion Aluminum Leg Leg Aluminum Leg Utility Medium Storage Unit Device Heat Sink Storage Medium Storage Unit Protection Power Shielding Weapon Light Assault Rifle Energy Gun Small Laser Ballistic Gun Light Assault Rifle Build | -11 -10 -10 ------- Run | Jun Mat Min Slots Evolved . | . . . Power . | . . . Propulsion . | . . . Utility . | . . . Weapon . | . . . Parts Attached 19 | . 11 8 Power 3 | . 1 2 Engine 2 | . 1 1 Core 1 | . . 1 Reactor . | . . . Propulsion 6 | . 3 3 Treads . | . . . Leg 6 | . 3 3 Wheel . | . . . Hover . | . . . Flight . | . . . Utility 3 | . 1 2 Device 1 | . . 1 Storage 1 | . 1 . Processor . | . . . Hackware . | . . . Protection 1 | . . 1 Artifact . | . . . Weapon 7 | . 6 1 Energy Gun 4 | . 3 1 Energy Cannon . | . . . Ballistic Gun 3 | . 3 . Ballistic Cannon . | . . . Launcher . | . . . Special Weapon . | . . . Impact Weapon . | . . . Slashing Weapon . | . . . Piercing Weapon . | . . . Special Melee Weapon . | . . . Unidentified Prototypes . | . . . Parts Lost . | . . . Power . | . . . Propulsion . | . . . Utility . | . . . Weapon . | . . . Highest Loss Streak . | . . . To Critical Strikes . | . . . Average Slot Usage (%) 88 | . 84 96 Engine 12 | . 14 8 Core 2 | . . 5 Leg 28 | . 28 28 Device 2 | . . 7 Storage 14 | . 14 14 Protection 1 | . . 3 Energy Gun 15 | . 15 14 Ballistic Gun 12 | . 11 14 Naked Turns . | . . . Heaviest Build 18 | 11 17 18 Greatest Support 20 | 20 20 20 Greatest Overweight (x) . | . . . Average Overweight (x) . | . . . Largest Inventory Capacity 10 | . 10 10 Average Capacity 9 | . 9 10 Most Carried 10 | . 10 10 Average Carried 9 | . 9 10 Final Capacity 10 | 8 10 10 Final Carried 10 | 6 10 10 Class Distribution -------------------- 56% | Scavenger-Mutant 43% | Mutant Dominant Class ---------------- Mutant | -10/Materials Scavenger-Mutant | -10/Mines Resources | -11 -10 -10 ----------- Run | Jun Mat Min Matter Collected 489 | 200 165 124 Remotely . | . . . Salvage Created 910 | . 603 307 Parts 53 | . 39 14 Haulers Intercepted 1 | . 1 . Recyclers Shooed 3 | . 2 1 Parts Field Recycled . | . . . Retrieved Matter . | . . . Parts Self-Destructed . | . . . Prevented . | . . . Kills | -11 -10 -10 ------- Run | Jun Mat Min Combat Hostiles Destroyed 18 | . 13 5 Guns 18 | . 13 5 Classes Destroyed 5 | . 4 1 Worker 1 | . . 1 Hauler 1 | . 1 . Recycler 3 | . 2 1 Swarmer 6 | . 6 . Grunt 12 | . 7 5 Best Kill Streak 7 | . 7 2 Combat Bots Only 5 | . 5 2 Max Kills in Single Turn 1 | . 1 1 Gunslinging . | . . . Exploded . | . . . Melee . | . . . Uniques/NPCs Destroyed . | . . . Combat | -11 -10 -10 -------- Run | Jun Mat Min Damage Taken 919 | . 366 553 Core 263 | . 73 190 Absorbed by Shields . | . . . Redirected to Shielding 8 | . . 8 Core Remaining (%) 100 | 100 . . Volleys Fired 90 | . 55 35 Largest 2 | . 2 2 Hottest 60 | . 60 60 Shots Fired 178 | . 110 68 Gun 178 | . 110 68 Cannon . | . . . Launcher . | . . . Special . | . . . Kinetic 89 | . 55 34 Thermal 69 | . 35 34 Explosive . | . . . Electromagnetic 20 | . 20 . Robot Hit Streak 15 | . 14 15 Robot Miss Streak 4 | . 3 4 Penetration Max . | . . . Secondary Targets 1 | . 1 . Max Gunslinging Chain 1 | . 1 . Shots Hit Robots 119 | . 72 47 Core Hits 45 | . 28 17 Critical Kills 1 | . . 1 Critical Parts Destroyed . | . . . Critical Strikes 1 | . . 1 Destroy 1 | . . 1 Melee Attacks . | . . . Impact . | . . . Slashing . | . . . Piercing . | . . . Sneak Attacks . | . . . Combat Hostiles . | . . . Follow-up Attacks . | . . . Damage Inflicted 1164 | . 708 456 Guns 1161 | . 708 453 Cannons . | . . . Explosions . | . . . Melee . | . . . Ramming 3 | . . 3 Kinetic 467 | . 277 190 Thermal 560 | . 297 263 Explosive . | . . . Electromagnetic 134 | . 134 . Impact . | . . . Slashing . | . . . Piercing . | . . . Highest Corruption 2 | . 2 2 Average Corruption 2 | . 2 2 Corruption Purged . | . . . Corruption Blocked . | . . . Effects 14 | . 5 9 Message Errors 3 | . 2 1 Matter Fused 4 | . . 4 Heat Flow Errors 1 | . 1 . Data Loss (minor) 3 | . 2 1 Misfires 1 | . . 1 Weapon Failures 2 | . . 2 Overload Shots . | . . . Overflow Damage . | . . . Projectiles . | . . . Explosions . | . . . Melee . | . . . Knockbacks . | . . . Impact . | . . . Kinetic . | . . . Secondary . | . . . Self-Inflicted Damage . | . . . Shots . | . . . Rammed . | . . . Targets Rammed 1 | . . 1 Kicked 1 | . . 1 Crushed . | . . . Highest Temperature 204 | . 189 204 Average Temperature 56 | . 48 70 Received Heat Transfer 429 | . 84 345 Siege Activations . | . . . Robots Corrupted . | . . . Combat Hostiles . | . . . Parts Fried . | . . . Impact Corruptions . | . . . Robots Melted . | . . . Combat Hostiles . | . . . Parts Melted 1 | . . 1 Heat Transferred 1275 | . 675 600 Parts Sabotaged . | . . . Parts Stolen . | . . . Parts Stripped . | . . . Power Chain Reactions . | . . . Missiles Intercepted . | . . . Alert | -11 -10 -10 ------- Run | Jun Mat Min Peak Influence 246 | . 222 246 Initial 86 | . . 86 Average 139 | . 99 209 Maximum Alert Level 1 | . 1 1 Low Security (%) 68 | . 95 22 Level 1 31 | . 4 77 Level 2 . | . . . Level 3 . | . . . Level 4 . | . . . Level 5 . | . . . High Security . | . . . Max Security . | . . . Squads Dispatched 3 | . 3 . Investigation 2 | . 2 . Extermination . | . . . Reinforcement 1 | . 1 . Assault . | . . . Garrison . | . . . Intercept . | . . . Searches Triggered . | . . . Construction Impeded . | . . . Haulers Reinforced . | . . . Active Scanning Responses . | . . . Cargo Convoy Interrupts . | . . . Stealth | -11 -10 -10 --------- Run | Jun Mat Min Distress Signals 3 | . 3 . Communications Jammed . | . . . Distress Signals . | . . . Times Spotted 27 | . 21 6 Peak Tracking Total 7 | . 7 2 Tactical Retreats 1 | . 1 . Traps | -11 -10 -10 ------- Run | Jun Mat Min Traps Triggered 4 | . 4 . Indirectly . | . . . Trap Hack Attempts . | . . . Triggered . | . . . Disarmed . | . . . Reprogrammed . | . . . Reused . | . . . Traps Extracted . | . . . Installed . | . . . Triggered . | . . . Machines | -11 -10 -10 ---------- Run | Jun Mat Min Machines Disabled . | . . . Max in Single Turn . | . . . Machines Repaired . | . . . Machines Sabotaged . | . . . Overloaded Fab Kills . | . . . Hacking | -11 -10 -10 --------- Run | Jun Mat Min Machines Accessed 4 | . 4 . Terminals 4 | . 4 . Fabricators . | . . . Repair Stations . | . . . Recycling Units . | . . . Scanalyzers . | . . . Garrison Access . | . . . Total Hacks 9 | . 9 . Successful 4 | . 4 . Failed 5 | . 5 . Catastrophic . | . . . Database Lockouts . | . . . Manual 5 | . 5 . Terminals 9 | . 9 . Fabricators . | . . . Repair Stations . | . . . Recycling Units . | . . . Scanalyzers . | . . . Garrison Access . | . . . Terminal Hacks 1 | . 1 . Prototype ID Bank 1 | . 1 . Fabricator Hacks . | . . . Repair Station Hacks . | . . . Recycling Unit Hacks . | . . . Scanalyzer . | . . . Garrison Access Hacks . | . . . Unauthorized Hacks 3 | . 3 . Terminals 3 | . 3 . Track 2 | . 2 . Assimilate 1 | . 1 . Fabricators . | . . . Repair Stations . | . . . Recycling Units . | . . . Scanalyzers . | . . . Garrison Access . | . . . Data Cores Recovered . | . . . Used . | . . . Hacking Detections 4 | . 4 . Full Trace Events 1 | . 1 . Feedback Events . | . . . Feedback Blocked . | . . . Robot Schematics Acquired . | . . . Robots Built . | . . . Authchips . | . . . Time . | . . . Total Robot Build Rating . | . . . Part Schematics Acquired . | . . . Parts Built . | . . . Authchips . | . . . Time . | . . . Total Part Build Rating . | . . . Parts Repaired . | . . . Time . | . . . Parts Recycled . | . . . Recycled Matter . | . . . Retrieved Matter . | . . . Retrieved Components . | . . . Parts Scanalyzed . | . . . Part Schematics Acquired . | . . . Parts Damaged . | . . . Bothacking | -11 -10 -10 ------------ Run | Jun Mat Min Used RIF Installer . | . . . Robots Hacked . | . . . Non-combat . | . . . Combat . | . . . Robot Hacks Applied . | . . . Relay Couplers Released . | . . . Fabnet Peak Effective % . | . . . Robots Rewired . | . . . Allies Hacked . | . . . Hacks Repelled . | . . . Allies | -11 -10 -10 -------- Run | Jun Mat Min Total Allies . | . . . Largest Group . | . . . Highest-Rated Group . | . . . Highest-Rated Ally . | . . . Total Orders . | . . . Ally Attacks . | . . . Total Damage . | . . . Kills . | . . . Allies Corrupted . | . . . Allies Melted . | . . . Intel | -11 -10 -10 ------- Run | Jun Mat Min Robot Analysis Total . | . . . Derelict Logs Recovered 1 | . . 1 Drone Launches . | . . . Drone Recoveries . | . . . Exploration | -11 -10 -10 ------------- Run | Jun Mat Min Turns Passed 983 | . 624 359 Spaces Moved 539 | 1 350 188 Core . | . . . Treads . | . . . Legs 539 | 1 350 188 Wheels . | . . . Hover . | . . . Flight . | . . . Fastest Speed 120 | 120 120 120 Average Speed 120 | 120 120 120 Slowest Speed 120 | 120 120 120 Overloaded Moves . | . . . Propulsion Burnouts . | . . . Robots Hopped . | . . . Cave-ins Triggered . | . . . Exploration Rate (%) 36 | 2 53 54 Regions Visited 2 Branch Regions 1 Pre-discovered Areas 1 | . . 1 Known Exits Taken . | . . . Unknown Exits Taken 2 | 1 1 . Scrap Searched 1 | . . 1 Spaces Dug . | . . . Terrain Destroyed . | . . . Melee . | . . . Projectile . | . . . AOE . | . . . Terrain Rammed . | . . . Walls Destroyed . | . . . Machines Disabled . | . . . Actions | -11 -10 -10 --------- Run | Jun Mat Min Total 723 | . 459 264 Wait 44 | . 21 23 Move 537 | . 349 188 Hop . | . . . Pick Up 9 | . 8 1 Fast Attach 9 | . 6 3 Attach . | . . . Detach 3 | . 3 . Swap 10 | . 5 5 Drop 20 | . 12 8 Fire 90 | . 55 35 Melee . | . . . Ram . | . . . Kick 1 | . . 1 Crush . | . . . Escape Stasis . | . . . Rewire . | . . . Trap . | . . . Miscellaneous . | . . . Route ------- -11/Junkyard -10/Materials -10/Mines (discovered 1 exit: [*Mat]) History --------- Turn | Location | Event 1 | -11/Junkyard | Discovered new exit (range 0) 1 | -11/Junkyard | Entered Materials 291 | -10/Materials | Discovered new exit (range 16) 303 | -10/Materials | Build established: Mutant 625 | -10/Materials | Entered Mines 632 | -10/Mines | Received a Rocket Launcher from a helpful Derelict 665 | -10/Mines | Discovered new exit (range 9) 691 | -10/Mines | Core integrity fell below 50% 740 | -10/Mines | Build established: Scavenger-Mutant 848 | -10/Mines | Learned location of Storage (-8) 857 | -10/Mines | Found a hidden stash of uninstalled traps 965 | -10/Mines | Core integrity fell below 20% 984 | -10/Mines | Destroyed by G-47 Trooper with Particle Gun Last Messages --------------- 00811_ R-06 Scavenger collects Wheel. 00813_ System corrupted: Matter fused (-8). 00848_ Acquired derelict log, extracted data. World map updated: -8/Storage. 00857_ A stash of uninstalled traps is collected here! 00906_ Searching scrap... 00906_ Found 35 Matter. 00906_ Found Power Shielding. 00906_ Found Sml. Laser. 00906_ Found 25 Matter. 00907_ Acquired 8 matter. 00907_ Dropped Heat Sink. 00909_ Acquired Power Shielding. 00910_ Acquired 10 matter. 00913_ Dropped Sml. Laser. 00914_ Acquired 10 matter. 00930_ System corrupted: Matter fused (-10). 00958_ G-34 Mercenary destroyed. 00982_ System corrupted: Component data lost. 00984_ Critical hit (Burn: +37). Map ----- +----------------------------------------------------+ | ??????????????????????????## #?????????? | | ?????????????????????????## < #?????????? | | ?????????????????????????# #??????????? | | ?????????????????????????# ##?????????? | | ?????????????####?????????# ########### | | ??????????#### ######??## | | ?????????## ####% | | ?????????# === ############# | | ?????????# =% ######## # | | ?????????# % # # | | ?????????# * % # # | | ?????????# ##### # | | ?????????### ## ## #???# # | | ???????????## ######## ##???#### # | | ????????????### #??????####???????#*%% # | | ??????????????## #?????????????????# ! # | | ???????????????# #?????????????????###### | | ???????????????## ##??????????????????????? | | ????????????????###????##??????????????##### | | ??????????????????????# ??????? | | ??????????????????????# #??????????????##### | | ??????????????????????# #??????????????????? | | ??????????????????????# #??????????????????? | | ??????????###########?# #??????????????????? | | ?????# !g=#?# #??????????????????? | | ??????????#########@#?# #??????????????????? | | ??????????????????# #?# #????####??????????# | | ??????????????????# ### ###### ##????????## | | ??????????????????# #??????###& | | ??????????????????########### ##????## | | ??????????????????????????## #???## | | ?????????????????????????## #???# | | ??????????????????????#### #???# | | ??????????????????????# ##???# | | ??????????????????????# ##????# | | ??????????????????????# #### ##?????# | | ??????????????????????# #??####??????# # | | ??????????????????????# [######???????# ### | | ??????????????????????#%% #?####??# #?? | | ??????????????????????# ! ### #### #?? | | ??????????????????????## ### ## ## ##? | | ???????????????????????# #?# ## ## | | ??????????????????????? #?# ## # | | ??????????????????????###### ## | | ???????????????????????## ## | | ???????????????????????# # | | ???????????????????????# ## | | ??????????????????????## #### | | ?????????????????????# #???# | | ???????????????? ## #????# | +----------------------------------------------------+ Best States ------------- Heat Dissipation 35 Energy Generation 14 Energy Capacity 250 Matter Stores 300 Matter Capacity 300 Sight Range 16 Terrain Scan Density 10 Power Shielding 33 Evasion (%) 55 Item Schematics ----------------- None Robot Schematics ------------------ None Fabricated ------------ Nothing Alien Tech Used ----------------- None Achievements -------------- None Challenges ------------ None Game ------ Seed PhaseRegenerativeEngine Manual? 0 Play Time 00:11:40 Cumulative 118.0 hours Start 2023.05.14 @ 11:21:07 End 2023.05.14 @ 11:30:20 Sessions 1 Manual Loads 0 Difficulty Rogue Special Mode None Game No. 197 Rogue 197 Adventurer 0 Explorer 0 Win Type - Total 0 Types 0/0/0/0/0/0/0/0/0 Lore% 56 Gallery% 59 Achievement% 46 Wizard Run 0 Options --------- ASCII 0 Keyboard 1 Movement Numpad Keybinds 0 Fullscreen 1 Font 18/SmallcapsGlow Map View 76x50 Tactical HUD 1 Map Filters NONE Filters NONE Steam 1 RUN: d1d2fc53-a624-4d3b-90bd-a3e3a9091c8a